[Event "Titled Tuesday Blitz December 13 Late 2022"]
[White "Hamley, Ryan"]
[Black "Freile Martin, Javier"]
[WhiteFideId "30959497"]
[BlackFideId "3600165"]
[WhiteElo "2603"]
[BlackElo "2382"]
[Result "1-0"]
[Round "05"]
[TimeControl "180+1"]
[Date "2022.12.14"]
[WhiteClock "0:00:06"]
[BlackClock "0:00:01"]

1. Nf3 {[%clk 0:02:52]}  Nf6 {[%clk 0:02:55]} 2. d4 {[%clk 0:02:51]}  g6 {[%clk 0:02:54]} 3. Nbd2 {[%clk 0:02:51]}  d5 {[%clk 0:02:53]} 4. b4 {[%clk 0:02:51]}  Bg7 {[%clk 0:02:52]} 5. e3 {[%clk 0:02:51]}  O-O {[%clk 0:02:51]} 6. c4 {[%clk 0:02:51]}  a5 {[%clk 0:02:45]} 7. b5 {[%clk 0:02:50]}  c6 {[%clk 0:02:42]} 8. Ba3 {[%clk 0:02:39]}  Re8 {[%clk 0:02:40]} 9. Ne5 {[%clk 0:02:36]}  Be6 {[%clk 0:02:32]} 10. Be2 {[%clk 0:02:25]}  Nfd7 {[%clk 0:02:21]} 11. f4 {[%clk 0:02:12]}  Nxe5 {[%clk 0:02:05]} 12. fxe5 {[%clk 0:02:09]}  Bh6 {[%clk 0:02:03]} 13. Qb3 {[%clk 0:01:50]}  Nd7 {[%clk 0:01:45]} 14. c5 {[%clk 0:01:39]}  f6 {[%clk 0:01:41]} 15. exf6 {[%clk 0:01:34]}  exf6 {[%clk 0:01:38]} 16. O-O {[%clk 0:01:32]}  Bf7 {[%clk 0:01:38]} 17. Rf3 {[%clk 0:01:32]}  Qe7 {[%clk 0:01:33]} 18. Nf1 {[%clk 0:01:31]}  f5 {[%clk 0:01:29]} 19. Rh3 {[%clk 0:01:23]}  Bg5 {[%clk 0:01:24]} 20. Rb1 {[%clk 0:01:18]}  Nf6 {[%clk 0:01:23]} 21. bxc6 {[%clk 0:01:13]}  bxc6 {[%clk 0:01:23]} 22. Qa4 {[%clk 0:01:14]}  Rac8 {[%clk 0:01:16]} 23. Qxa5 {[%clk 0:01:05]}  Ng4 {[%clk 0:00:59]} 24. Qc3 {[%clk 0:01:05]}  Ra8 {[%clk 0:00:42]} 25. Rb6 {[%clk 0:00:30]}  Qc7 {[%clk 0:00:40]} 26. Bc1 {[%clk 0:00:27]}  Rxa2 {[%clk 0:00:37]} 27. Bd2 {[%clk 0:00:26]}  h5 {[%clk 0:00:34]} 28. Rg3 {[%clk 0:00:22]}  Bh4 {[%clk 0:00:30]} 29. Rf3 {[%clk 0:00:21]}  Rea8 {[%clk 0:00:24]} 30. g3 {[%clk 0:00:18]}  Bf6 {[%clk 0:00:20]} 31. Be1 {[%clk 0:00:18]}  Ra1 {[%clk 0:00:18]} 32. Rb3 {[%clk 0:00:08]}  R8a2 {[%clk 0:00:16]} 33. Bd3 {[%clk 0:00:07]}  h4 {[%clk 0:00:13]} 34. h3 {[%clk 0:00:06]}  Nh6 {[%clk 0:00:11]} 35. Rf2 {[%clk 0:00:06]}  hxg3 {[%clk 0:00:10]} 36. Rxa2 {[%clk 0:00:05]}  Rxa2 {[%clk 0:00:10]} 37. Bxg3 {[%clk 0:00:06]}  Qe7 {[%clk 0:00:06]} 38. Rb8+ {[%clk 0:00:05]}  Kg7 {[%clk 0:00:05]} 39. Bc2 {[%clk 0:00:05]}  Ra7 {[%clk 0:00:01]} 40. Qd3 {[%clk 0:00:06]} 1-0


[Site "https://www.chess.com"]

[Event "Titled Tuesday Blitz December 13 Late 2022"]
[White "Han, Yichen"]
[Black "Banzea, Alexandru-Bogdan"]
[WhiteFideId "1054430"]
[BlackFideId "1232622"]
[WhiteElo "2323"]
[BlackElo "2294"]
[Result "1-0"]
[Round "05"]
[TimeControl "180+1"]
[Date "2022.12.14"]
[WhiteClock "0:00:19"]
[BlackClock "0:00:02"]

1. d4 {[%clk 0:02:44]}  Nf6 {[%clk 0:02:57]} 2. Nf3 {[%clk 0:02:42]}  g6 {[%clk 0:02:57]} 3. Nbd2 {[%clk 0:02:40]}  Bg7 {[%clk 0:02:58]} 4. e4 {[%clk 0:02:40]}  d6 {[%clk 0:02:58]} 5. Bb5+ {[%clk 0:02:40]}  c6 {[%clk 0:02:49]} 6. Bd3 {[%clk 0:02:40]}  O-O {[%clk 0:02:50]} 7. O-O {[%clk 0:02:41]}  Nbd7 {[%clk 0:02:50]} 8. c3 {[%clk 0:02:37]}  e5 {[%clk 0:02:50]} 9. Re1 {[%clk 0:02:37]}  Qc7 {[%clk 0:02:50]} 10. a4 {[%clk 0:02:37]}  b6 {[%clk 0:02:33]} 11. Bf1 {[%clk 0:02:35]}  Bb7 {[%clk 0:02:32]} 12. b3 {[%clk 0:02:29]}  Rfe8 {[%clk 0:02:19]} 13. Qc2 {[%clk 0:02:28]}  a6 {[%clk 0:02:11]} 14. Ba3 {[%clk 0:02:21]}  Rad8 {[%clk 0:02:01]} 15. Rad1 {[%clk 0:02:17]}  b5 {[%clk 0:01:45]} 16. axb5 {[%clk 0:02:04]}  axb5 {[%clk 0:01:46]} 17. c4 {[%clk 0:02:05]}  b4 {[%clk 0:01:05]} 18. Bxb4 {[%clk 0:01:55]}  exd4 {[%clk 0:01:02]} 19. Nxd4 {[%clk 0:01:55]}  Qb6 {[%clk 0:01:02]} 20. Bc3 {[%clk 0:01:52]}  Ng4 {[%clk 0:01:02]} 21. N2f3 {[%clk 0:01:35]}  Nde5 {[%clk 0:00:26]} 22. Nxe5 {[%clk 0:01:30]}  Nxe5 {[%clk 0:00:19]} 23. h3 {[%clk 0:01:25]}  Ba8 {[%clk 0:00:16]} 24. Qd2 {[%clk 0:01:19]}  Nd7 {[%clk 0:00:15]} 25. Ba5 {[%clk 0:01:16]}  Qb8 {[%clk 0:00:13]} 26. Bxd8 {[%clk 0:01:16]}  Rxd8 {[%clk 0:00:14]} 27. Nf3 {[%clk 0:01:09]}  Nc5 {[%clk 0:00:15]} 28. b4 {[%clk 0:01:06]}  Ne6 {[%clk 0:00:13]} 29. b5 {[%clk 0:01:01]}  c5 {[%clk 0:00:11]} 30. Qa5 {[%clk 0:00:47]}  Nd4 {[%clk 0:00:10]} 31. Nxd4 {[%clk 0:00:46]}  Bxd4 {[%clk 0:00:11]} 32. b6 {[%clk 0:00:43]}  Re8 {[%clk 0:00:09]} 33. Bd3 {[%clk 0:00:39]}  Qd8 {[%clk 0:00:06]} 34. Re2 {[%clk 0:00:33]}  Qh4 {[%clk 0:00:06]} 35. Qa7 {[%clk 0:00:31]}  Qe7 {[%clk 0:00:02]} 36. Ra2 {[%clk 0:00:24]}  Bb7 {[%clk 0:00:02]} 37. Re1 {[%clk 0:00:19]} 1-0


[Site "https://www.chess.com"]

[Event "Titled Tuesday Blitz December 13 Late 2022"]
[White "Hoffmann, Asa"]
[Black "Kaplan, Avi Harrison"]
[WhiteFideId "2001470"]
[BlackFideId "30934559"]
[WhiteElo "2117"]
[BlackElo "1983"]
[Result "0-1"]
[Round "05"]
[TimeControl "180+1"]
[Date "2022.12.14"]
[WhiteClock "0:00:07"]
[BlackClock "0:00:34"]

1. d4 {[%clk 0:02:58]}  Nf6 {[%clk 0:02:57]} 2. Bg5 {[%clk 0:02:57]}  c5 {[%clk 0:02:56]} 3. d5 {[%clk 0:02:56]}  d6 {[%clk 0:02:53]} 4. Nc3 {[%clk 0:02:55]}  g6 {[%clk 0:02:53]} 5. e4 {[%clk 0:02:54]}  Bg7 {[%clk 0:02:53]} 6. f3 {[%clk 0:02:53]}  h6 {[%clk 0:02:53]} 7. Be3 {[%clk 0:02:52]}  O-O {[%clk 0:02:45]} 8. Qd2 {[%clk 0:02:51]}  Kh7 {[%clk 0:02:43]} 9. h4 {[%clk 0:02:50]}  e6 {[%clk 0:02:41]} 10. dxe6 {[%clk 0:02:48]}  Bxe6 {[%clk 0:02:17]} 11. O-O-O {[%clk 0:02:47]}  Ne8 {[%clk 0:02:14]} 12. Bxc5 {[%clk 0:02:41]}  Qa5 {[%clk 0:02:00]} 13. Bd4 {[%clk 0:02:40]}  Bxa2 {[%clk 0:02:00]} 14. Nh3 {[%clk 0:02:11]}  Be6 {[%clk 0:01:52]} 15. Nf4 {[%clk 0:02:07]}  Nc6 {[%clk 0:01:43]} 16. Bxg7 {[%clk 0:02:01]}  Qa1+ {[%clk 0:01:29]} 17. Nb1 {[%clk 0:02:00]}  Ba2 {[%clk 0:01:30]} 18. Qc3 {[%clk 0:01:34]}  Nxg7 {[%clk 0:01:27]} 19. b3 {[%clk 0:01:18]}  Qxb1+ {[%clk 0:00:46]} 20. Kd2 {[%clk 0:01:17]}  Rac8 {[%clk 0:00:46]} 21. Rxb1 {[%clk 0:01:06]}  Bxb1 {[%clk 0:00:47]} 22. Bd3 {[%clk 0:00:49]}  Ne5 {[%clk 0:00:38]} 23. Qb2 {[%clk 0:00:41]}  Nxd3 {[%clk 0:00:33]} 24. cxd3 {[%clk 0:00:10]}  Rc2+ {[%clk 0:00:31]} 25. Qxc2 {[%clk 0:00:10]}  Bxc2 {[%clk 0:00:32]} 26. Kxc2 {[%clk 0:00:10]}  Rc8+ {[%clk 0:00:33]} 27. Kb2 {[%clk 0:00:07]}  Ne6 {[%clk 0:00:34]} 0-1


[Site "https://www.chess.com"]

[Event "Titled Tuesday Blitz December 13 Late 2022"]
[White "Ibarra Jerez, Jose Carlos"]
[Black "Domingo Nunez, Ruben"]
[WhiteFideId "2226332"]
[BlackFideId "22245570"]
[WhiteElo "2638"]
[BlackElo "2406"]
[Result "1-0"]
[Round "05"]
[TimeControl "180+1"]
[Date "2022.12.13"]
[WhiteClock "0:01:25"]
[BlackClock "0:01:40"]

1. e4 {[%clk 0:03:00]}  Nf6 {[%clk 0:02:26]} 2. e5 {[%clk 0:03:00]}  Nd5 {[%clk 0:02:27]} 3. c4 {[%clk 0:03:01]}  Nb6 {[%clk 0:02:27]} 4. d4 {[%clk 0:03:02]}  d6 {[%clk 0:02:28]} 5. exd6 {[%clk 0:03:02]}  exd6 {[%clk 0:02:28]} 6. Nc3 {[%clk 0:03:02]}  Be7 {[%clk 0:02:28]} 7. Bd3 {[%clk 0:03:03]}  O-O {[%clk 0:02:29]} 8. Nge2 {[%clk 0:03:03]}  d5 {[%clk 0:02:29]} 9. c5 {[%clk 0:03:02]}  N6d7 {[%clk 0:02:29]} 10. Nxd5 {[%clk 0:03:01]}  b6 {[%clk 0:02:29]} 11. Bf4 {[%clk 0:02:46]}  Na6 {[%clk 0:02:18]} 12. Bxa6 {[%clk 0:02:26]}  Bxa6 {[%clk 0:02:17]} 13. Bxc7 {[%clk 0:02:13]}  Qe8 {[%clk 0:02:14]} 14. O-O {[%clk 0:01:43]}  Rc8 {[%clk 0:01:54]} 15. Re1 {[%clk 0:01:38]}  Nf6 {[%clk 0:01:44]} 16. Nec3 {[%clk 0:01:26]}  Rxc7 {[%clk 0:01:40]} 17. Nxc7 {[%clk 0:01:25]} 1-0


[Site "https://www.chess.com"]

[Event "Titled Tuesday Blitz December 13 Late 2022"]
[White "Itkis, Boris"]
[Black "Santos Flores, Alberto"]
[WhiteFideId "1209167"]
[BlackFideId "3601234"]
[WhiteElo "2216"]
[BlackElo "2235"]
[Result "0-1"]
[Round "05"]
[TimeControl "180+1"]
[Date "2022.12.14"]
[WhiteClock "0:00:02"]
[BlackClock "0:00:20"]

1. c4 {[%clk 0:03:00]}  c6 {[%clk 0:02:59]} 2. Nf3 {[%clk 0:03:00]}  d5 {[%clk 0:02:59]} 3. e3 {[%clk 0:03:00]}  Nf6 {[%clk 0:02:59]} 4. Nc3 {[%clk 0:03:00]}  e6 {[%clk 0:02:57]} 5. b3 {[%clk 0:02:59]}  Nbd7 {[%clk 0:02:56]} 6. Bb2 {[%clk 0:02:59]}  Bd6 {[%clk 0:02:56]} 7. Qc2 {[%clk 0:02:58]}  Qe7 {[%clk 0:02:55]} 8. Rg1 {[%clk 0:02:58]}  Ba3 {[%clk 0:02:53]} 9. g4 {[%clk 0:02:57]}  Bxb2 {[%clk 0:02:52]} 10. Qxb2 {[%clk 0:02:58]}  h6 {[%clk 0:02:45]} 11. Be2 {[%clk 0:02:50]}  Nc5 {[%clk 0:02:41]} 12. d3 {[%clk 0:02:44]}  e5 {[%clk 0:02:35]} 13. h3 {[%clk 0:02:33]}  e4 {[%clk 0:02:22]} 14. dxe4 {[%clk 0:02:30]}  Ncxe4 {[%clk 0:01:57]} 15. Nxe4 {[%clk 0:02:21]}  dxe4 {[%clk 0:01:56]} 16. Nd4 {[%clk 0:02:13]}  Qb4+ {[%clk 0:01:56]} 17. Qd2 {[%clk 0:02:11]}  Qxd2+ {[%clk 0:01:56]} 18. Kxd2 {[%clk 0:02:12]}  O-O {[%clk 0:01:53]} 19. Kc3 {[%clk 0:02:12]}  c5 {[%clk 0:01:51]} 20. Nb5 {[%clk 0:02:04]}  Bd7 {[%clk 0:01:47]} 21. Rad1 {[%clk 0:02:03]}  Bc6 {[%clk 0:01:45]} 22. h4 {[%clk 0:01:49]}  g5 {[%clk 0:01:41]} 23. hxg5 {[%clk 0:01:46]}  hxg5 {[%clk 0:01:42]} 24. Nd6 {[%clk 0:01:46]}  b6 {[%clk 0:01:35]} 25. Nf5 {[%clk 0:01:43]}  Bd7 {[%clk 0:01:23]} 26. Rd6 {[%clk 0:01:31]}  Be6 {[%clk 0:01:23]} 27. Rgd1 {[%clk 0:01:14]}  Rfe8 {[%clk 0:01:22]} 28. Rc6 {[%clk 0:01:03]}  Red8 {[%clk 0:01:14]} 29. Rcd6 {[%clk 0:00:58]}  Rxd6 {[%clk 0:01:13]} 30. Rxd6 {[%clk 0:00:55]}  Bxf5 {[%clk 0:01:03]} 31. Rxf6 {[%clk 0:00:45]}  Be6 {[%clk 0:00:56]} 32. Rh6 {[%clk 0:00:44]}  Kg7 {[%clk 0:00:56]} 33. Rh1 {[%clk 0:00:44]}  Rd8 {[%clk 0:00:54]} 34. a3 {[%clk 0:00:37]}  Rh8 {[%clk 0:00:42]} 35. Rxh8 {[%clk 0:00:16]}  Kxh8 {[%clk 0:00:43]} 36. b4 {[%clk 0:00:17]}  Kg7 {[%clk 0:00:43]} 37. f3 {[%clk 0:00:07]}  exf3 {[%clk 0:00:39]} 38. Bxf3 {[%clk 0:00:08]}  Kf6 {[%clk 0:00:39]} 39. Kd3 {[%clk 0:00:04]}  Ke5 {[%clk 0:00:39]} 40. bxc5 {[%clk 0:00:04]}  bxc5 {[%clk 0:00:39]} 41. Be2 {[%clk 0:00:04]}  f6 {[%clk 0:00:37]} 42. Bf3 {[%clk 0:00:05]}  Bf7 {[%clk 0:00:37]} 43. Be2 {[%clk 0:00:05]}  Bg6+ {[%clk 0:00:37]} 44. Kc3 {[%clk 0:00:05]}  Be4 {[%clk 0:00:36]} 45. Kd2 {[%clk 0:00:04]}  Bb1 {[%clk 0:00:32]} 46. Bf3 {[%clk 0:00:03]}  Be4 {[%clk 0:00:30]} 47. Be2 {[%clk 0:00:04]}  Bc6 {[%clk 0:00:22]} 48. Bd3 {[%clk 0:00:03]}  Ba4 {[%clk 0:00:21]} 49. Be2 {[%clk 0:00:02]}  Ke4 {[%clk 0:00:20]} 0-1


[Site "https://www.chess.com"]

[Event "Titled Tuesday Blitz December 13 Late 2022"]
[White "Jacobson, Brandon"]
[Black "Gritsenko, Nikolai"]
[WhiteFideId "30901561"]
[BlackFideId "14112493"]
[WhiteElo "2451"]
[BlackElo "2389"]
[Result "1/2-1/2"]
[Round "05"]
[TimeControl "180+1"]
[Date "2022.12.13"]
[WhiteClock "0:00:06"]
[BlackClock "0:00:05"]

1. d4 {[%clk 0:02:53]}  d5 {[%clk 0:02:59]} 2. c4 {[%clk 0:02:54]}  Nc6 {[%clk 0:02:59]} 3. Nc3 {[%clk 0:02:53]}  e6 {[%clk 0:02:55]} 4. Nf3 {[%clk 0:02:53]}  Nf6 {[%clk 0:02:54]} 5. Bg5 {[%clk 0:02:54]}  Bb4 {[%clk 0:02:54]} 6. e3 {[%clk 0:02:53]}  h6 {[%clk 0:02:53]} 7. Bxf6 {[%clk 0:02:51]}  Qxf6 {[%clk 0:02:52]} 8. Rc1 {[%clk 0:02:42]}  dxc4 {[%clk 0:02:46]} 9. Bxc4 {[%clk 0:02:42]}  O-O {[%clk 0:02:46]} 10. O-O {[%clk 0:02:41]}  a6 {[%clk 0:02:43]} 11. Qc2 {[%clk 0:02:38]}  Bd7 {[%clk 0:02:25]} 12. Bb3 {[%clk 0:02:30]}  Bd6 {[%clk 0:02:16]} 13. Ne4 {[%clk 0:02:28]}  Qe7 {[%clk 0:02:15]} 14. a3 {[%clk 0:02:28]}  Rac8 {[%clk 0:02:09]} 15. Nc5 {[%clk 0:02:18]}  Bxc5 {[%clk 0:02:03]} 16. Qxc5 {[%clk 0:02:19]}  Qxc5 {[%clk 0:02:02]} 17. Rxc5 {[%clk 0:02:20]}  Ne7 {[%clk 0:01:54]} 18. Rfc1 {[%clk 0:02:20]}  c6 {[%clk 0:01:53]} 19. Ne5 {[%clk 0:02:19]}  Rfd8 {[%clk 0:01:52]} 20. Ba2 {[%clk 0:02:10]}  Be8 {[%clk 0:01:47]} 21. b4 {[%clk 0:02:10]}  Nd5 {[%clk 0:01:32]} 22. R5c2 {[%clk 0:02:06]}  Kf8 {[%clk 0:01:28]} 23. Nd3 {[%clk 0:02:04]}  Nb6 {[%clk 0:01:14]} 24. Nc5 {[%clk 0:02:04]}  Rb8 {[%clk 0:01:06]} 25. f4 {[%clk 0:02:04]}  Ke7 {[%clk 0:01:04]} 26. Kf2 {[%clk 0:02:04]}  Nd7 {[%clk 0:01:00]} 27. Rb2 {[%clk 0:01:50]}  Nf6 {[%clk 0:00:57]} 28. Kf3 {[%clk 0:01:47]}  g5 {[%clk 0:00:57]} 29. g4 {[%clk 0:01:15]}  gxf4 {[%clk 0:00:45]} 30. Kxf4 {[%clk 0:01:16]}  Bd7 {[%clk 0:00:37]} 31. e4 {[%clk 0:01:05]}  Rg8 {[%clk 0:00:31]} 32. h3 {[%clk 0:01:05]}  Rg7 {[%clk 0:00:20]} 33. Rf1 {[%clk 0:01:00]}  h5 {[%clk 0:00:19]} 34. g5 {[%clk 0:00:45]}  Nh7 {[%clk 0:00:19]} 35. h4 {[%clk 0:00:42]}  f6 {[%clk 0:00:19]} 36. gxf6+ {[%clk 0:00:22]}  Nxf6 {[%clk 0:00:18]} 37. e5 {[%clk 0:00:07]}  Rf8 {[%clk 0:00:12]} 38. Ke3 {[%clk 0:00:04]}  Nd5+ {[%clk 0:00:11]} 39. Ke2 {[%clk 0:00:02]}  Rg2+ {[%clk 0:00:10]} 40. Kd3 {[%clk 0:00:01]}  Rxb2 {[%clk 0:00:09]} 41. Rxf8 {[%clk 0:00:01]}  Rxa2 {[%clk 0:00:09]} 42. Rb8 {[%clk 0:00:02]}  Rxa3+ {[%clk 0:00:08]} 43. Kd2 {[%clk 0:00:02]}  b6 {[%clk 0:00:06]} 44. Ne4 {[%clk 0:00:02]}  Ra2+ {[%clk 0:00:06]} 45. Kc1 {[%clk 0:00:02]}  Ra1+ {[%clk 0:00:05]} 46. Kb2 {[%clk 0:00:03]}  Re1 {[%clk 0:00:06]} 47. Nd6 {[%clk 0:00:03]}  Re2+ {[%clk 0:00:06]} 48. Kc1 {[%clk 0:00:03]}  Nxb4 {[%clk 0:00:05]} 49. Rxb6 {[%clk 0:00:02]}  Nd5 {[%clk 0:00:05]} 50. Rxa6 {[%clk 0:00:03]}  Rh2 {[%clk 0:00:04]} 51. Ra8 {[%clk 0:00:03]}  Rxh4 {[%clk 0:00:04]} 52. Rh8 {[%clk 0:00:04]}  Rxd4 {[%clk 0:00:04]} 53. Rxh5 {[%clk 0:00:04]}  Kd8 {[%clk 0:00:04]} 54. Rh8+ {[%clk 0:00:03]}  Kc7 {[%clk 0:00:05]} 55. Rh7 {[%clk 0:00:04]}  c5 {[%clk 0:00:04]} 56. Nb5+ {[%clk 0:00:04]}  Kc6 {[%clk 0:00:05]} 57. Na7+ {[%clk 0:00:05]}  Kc7 {[%clk 0:00:04]} 58. Nb5+ {[%clk 0:00:05]}  Kc6 {[%clk 0:00:05]} 59. Na7+ {[%clk 0:00:05]}  Kc7 {[%clk 0:00:05]} 60. Nb5+ {[%clk 0:00:06]} 1/2-1/2


[Site "https://www.chess.com"]

[Event "Titled Tuesday Blitz December 13 Late 2022"]
[White "Jarocka, Liwia"]
[Black "Ballester Llagaria, Luis Eduardo"]
[WhiteFideId "21807558"]
[BlackFideId "2297620"]
[WhiteElo "1989"]
[BlackElo "2344"]
[Result "1/2-1/2"]
[Round "05"]
[TimeControl "180+1"]
[Date "2022.12.14"]
[WhiteClock "0:00:05"]
[BlackClock "0:00:08"]

1. e4 {[%clk 0:03:00]}  c5 {[%clk 0:02:56]} 2. Nf3 {[%clk 0:03:00]}  e6 {[%clk 0:02:57]} 3. d4 {[%clk 0:03:00]}  cxd4 {[%clk 0:02:57]} 4. Nxd4 {[%clk 0:03:01]}  Nc6 {[%clk 0:02:58]} 5. Nc3 {[%clk 0:03:01]}  Qc7 {[%clk 0:02:58]} 6. Be2 {[%clk 0:03:01]}  a6 {[%clk 0:02:58]} 7. O-O {[%clk 0:03:00]}  Nf6 {[%clk 0:02:58]} 8. Be3 {[%clk 0:03:00]}  Bb4 {[%clk 0:02:56]} 9. Nxc6 {[%clk 0:02:58]}  bxc6 {[%clk 0:02:57]} 10. f4 {[%clk 0:02:58]}  d5 {[%clk 0:02:53]} 11. e5 {[%clk 0:02:58]}  Nd7 {[%clk 0:02:53]} 12. Na4 {[%clk 0:02:57]}  Be7 {[%clk 0:02:23]} 13. c4 {[%clk 0:02:55]}  Rb8 {[%clk 0:02:24]} 14. b3 {[%clk 0:02:53]}  dxc4 {[%clk 0:02:14]} 15. Bxc4 {[%clk 0:02:52]}  c5 {[%clk 0:02:14]} 16. Qe2 {[%clk 0:02:50]}  Qc6 {[%clk 0:02:08]} 17. Rac1 {[%clk 0:02:45]}  Bb7 {[%clk 0:02:08]} 18. Rfd1 {[%clk 0:02:44]}  O-O {[%clk 0:02:05]} 19. Qf2 {[%clk 0:02:40]}  Rfd8 {[%clk 0:02:02]} 20. Be2 {[%clk 0:02:40]}  Rbc8 {[%clk 0:01:39]} 21. Bf3 {[%clk 0:02:37]}  Qc7 {[%clk 0:01:38]} 22. Bxb7 {[%clk 0:02:33]}  Qxb7 {[%clk 0:01:39]} 23. Nxc5 {[%clk 0:02:20]}  Bxc5 {[%clk 0:01:23]} 24. Bxc5 {[%clk 0:02:18]}  Nxc5 {[%clk 0:01:24]} 25. Rxd8+ {[%clk 0:02:15]}  Rxd8 {[%clk 0:01:24]} 26. Qxc5 {[%clk 0:02:11]}  g6 {[%clk 0:01:15]} 27. Qf2 {[%clk 0:02:05]}  Rd3 {[%clk 0:01:04]} 28. h3 {[%clk 0:02:01]}  Qd5 {[%clk 0:00:49]} 29. Rc5 {[%clk 0:01:32]}  Qe4 {[%clk 0:00:41]} 30. Kh2 {[%clk 0:01:16]}  Re3 {[%clk 0:00:30]} 31. Rc4 {[%clk 0:01:13]}  Qd3 {[%clk 0:00:30]} 32. Qh4 {[%clk 0:01:06]}  Qf5 {[%clk 0:00:24]} 33. Qf6 {[%clk 0:01:00]}  Qxf6 {[%clk 0:00:11]} 34. exf6 {[%clk 0:01:00]}  h5 {[%clk 0:00:10]} 35. Rc8+ {[%clk 0:00:58]}  Kh7 {[%clk 0:00:10]} 36. Rf8 {[%clk 0:00:57]}  Re2 {[%clk 0:00:07]} 37. Rxf7+ {[%clk 0:00:56]}  Kg8 {[%clk 0:00:06]} 38. Rg7+ {[%clk 0:00:46]}  Kf8 {[%clk 0:00:06]} 39. Rxg6 {[%clk 0:00:47]}  Kf7 {[%clk 0:00:07]} 40. Rg5 {[%clk 0:00:45]}  Rxa2 {[%clk 0:00:06]} 41. Rxh5 {[%clk 0:00:45]}  Kxf6 {[%clk 0:00:06]} 42. Rh8 {[%clk 0:00:42]}  Ra3 {[%clk 0:00:06]} 43. Ra8 {[%clk 0:00:41]}  Kf5 {[%clk 0:00:07]} 44. b4 {[%clk 0:00:36]}  Kxf4 {[%clk 0:00:06]} 45. b5 {[%clk 0:00:35]}  a5 {[%clk 0:00:06]} 46. b6 {[%clk 0:00:35]}  Rb3 {[%clk 0:00:07]} 47. Rxa5 {[%clk 0:00:33]}  Rxb6 {[%clk 0:00:07]} 48. Ra4+ {[%clk 0:00:33]}  Kf5 {[%clk 0:00:08]} 49. Ra3 {[%clk 0:00:31]}  e5 {[%clk 0:00:08]} 50. Kg3 {[%clk 0:00:27]}  Rb4 {[%clk 0:00:06]} 51. Kf3 {[%clk 0:00:26]}  Rc4 {[%clk 0:00:06]} 52. Ke3 {[%clk 0:00:26]}  Rc2 {[%clk 0:00:06]} 53. g3 {[%clk 0:00:20]}  Rh2 {[%clk 0:00:06]} 54. h4 {[%clk 0:00:19]}  Kg4 {[%clk 0:00:05]} 55. Ke4 {[%clk 0:00:14]}  Re2+ {[%clk 0:00:06]} 56. Kd3 {[%clk 0:00:13]}  Rg2 {[%clk 0:00:05]} 57. Ke4 {[%clk 0:00:12]}  Re2+ {[%clk 0:00:06]} 58. Kd5 {[%clk 0:00:09]}  e4 {[%clk 0:00:04]} 59. Kd4 {[%clk 0:00:09]}  Re1 {[%clk 0:00:04]} 60. Re3 {[%clk 0:00:08]}  Ra1 {[%clk 0:00:03]} 61. Kxe4 {[%clk 0:00:08]}  Ra4+ {[%clk 0:00:04]} 62. Kd3 {[%clk 0:00:08]}  Ra3+ {[%clk 0:00:04]} 63. Kd2 {[%clk 0:00:09]}  Ra2+ {[%clk 0:00:04]} 64. Kd3 {[%clk 0:00:08]}  Ra3+ {[%clk 0:00:05]} 65. Ke4 {[%clk 0:00:09]}  Ra4+ {[%clk 0:00:05]} 66. Ke5 {[%clk 0:00:09]}  Ra5+ {[%clk 0:00:06]} 67. Kf6 {[%clk 0:00:09]}  Ra6+ {[%clk 0:00:06]} 68. Re6 {[%clk 0:00:09]}  Ra5 {[%clk 0:00:05]} 69. Kg6 {[%clk 0:00:08]}  Kxg3 {[%clk 0:00:03]} 70. h5 {[%clk 0:00:09]}  Kf4 {[%clk 0:00:02]} 71. h6 {[%clk 0:00:09]}  Rg5+ {[%clk 0:00:03]} 72. Kh7 {[%clk 0:00:09]}  Rg1 {[%clk 0:00:03]} 73. Rg6 {[%clk 0:00:09]}  Rh1 {[%clk 0:00:03]} 74. Rf6+ {[%clk 0:00:10]}  Kg5 {[%clk 0:00:03]} 75. Rg6+ {[%clk 0:00:09]}  Kf5 {[%clk 0:00:04]} 76. Rg7 {[%clk 0:00:10]}  Kf6 {[%clk 0:00:04]} 77. Rg3 {[%clk 0:00:10]}  Rh2 {[%clk 0:00:04]} 78. Rf3+ {[%clk 0:00:10]}  Ke7 {[%clk 0:00:05]} 79. Kg7 {[%clk 0:00:10]}  Rg2+ {[%clk 0:00:06]} 80. Kh8 {[%clk 0:00:10]}  Rg4 {[%clk 0:00:04]} 81. h7 {[%clk 0:00:11]}  Ke8 {[%clk 0:00:04]} 82. Re3+ {[%clk 0:00:11]}  Kf7 {[%clk 0:00:04]} 83. Rf3+ {[%clk 0:00:12]}  Ke8 {[%clk 0:00:05]} 84. Rf2 {[%clk 0:00:13]}  Ke7 {[%clk 0:00:05]} 85. Rf5 {[%clk 0:00:12]}  Ke8 {[%clk 0:00:06]} 86. Ra5 {[%clk 0:00:12]}  Kf7 {[%clk 0:00:06]} 87. Ra7+ {[%clk 0:00:12]}  Kf8 {[%clk 0:00:06]} 88. Ra8+ {[%clk 0:00:13]}  Kf7 {[%clk 0:00:06]} 89. Rg8 {[%clk 0:00:13]}  Rh4 {[%clk 0:00:06]} 90. Rg7+ {[%clk 0:00:13]}  Kf8 {[%clk 0:00:06]} 91. Rg3 {[%clk 0:00:13]}  Rh1 {[%clk 0:00:06]} 92. Rf3+ {[%clk 0:00:13]}  Ke7 {[%clk 0:00:06]} 93. Rf2 {[%clk 0:00:13]}  Rg1 {[%clk 0:00:06]} 94. Rf4 {[%clk 0:00:12]}  Ke6 {[%clk 0:00:07]} 95. Ra4 {[%clk 0:00:12]}  Kf7 {[%clk 0:00:07]} 96. Ra8 {[%clk 0:00:11]}  Kf6 {[%clk 0:00:06]} 97. Rg8 {[%clk 0:00:12]}  Rh1 {[%clk 0:00:07]} 98. Rf8+ {[%clk 0:00:12]}  Ke7 {[%clk 0:00:07]} 99. Rg8 {[%clk 0:00:10]}  Kf7 {[%clk 0:00:07]} 100. Rg3 {[%clk 0:00:09]}  Kf8 {[%clk 0:00:07]} 101. Rf3+ {[%clk 0:00:09]}  Ke7 {[%clk 0:00:07]} 102. Kg7 {[%clk 0:00:10]}  Rg1+ {[%clk 0:00:08]} 103. Kh8 {[%clk 0:00:10]}  Rg4 {[%clk 0:00:08]} 104. Rf2 {[%clk 0:00:09]}  Ke6 {[%clk 0:00:08]} 105. Rf8 {[%clk 0:00:07]}  Ke7 {[%clk 0:00:08]} 106. Rf1 {[%clk 0:00:07]}  Ke6 {[%clk 0:00:08]} 107. Rf2 {[%clk 0:00:07]}  Ke7 {[%clk 0:00:08]} 108. Rd2 {[%clk 0:00:07]}  Kf7 {[%clk 0:00:08]} 109. Rd7+ {[%clk 0:00:07]}  Kf8 {[%clk 0:00:08]} 110. Rd8+ {[%clk 0:00:08]}  Kf7 {[%clk 0:00:08]} 111. Rg8 {[%clk 0:00:09]}  Rh4 {[%clk 0:00:08]} 112. Rg5 {[%clk 0:00:09]}  Rh2 {[%clk 0:00:08]} 113. Rg4 {[%clk 0:00:09]}  Re2 {[%clk 0:00:07]} 114. Rf4+ {[%clk 0:00:09]}  Kg6 {[%clk 0:00:08]} 115. Rg4+ {[%clk 0:00:06]}  Kh6 {[%clk 0:00:06]} 116. Rh4+ {[%clk 0:00:06]}  Kg6 {[%clk 0:00:06]} 117. Rg4+ {[%clk 0:00:06]}  Kf7 {[%clk 0:00:06]} 118. Rg7+ {[%clk 0:00:05]}  Kf8 {[%clk 0:00:06]} 119. Rg8+ {[%clk 0:00:06]}  Kf7 {[%clk 0:00:07]} 120. Rg4 {[%clk 0:00:06]}  Kf8 {[%clk 0:00:06]} 121. Rg8+ {[%clk 0:00:05]}  Kf7 {[%clk 0:00:07]} 122. Rg4 {[%clk 0:00:06]}  Re8+ {[%clk 0:00:07]} 123. Rg8 {[%clk 0:00:05]}  Re2 {[%clk 0:00:08]} 1/2-1/2


[Site "https://www.chess.com"]